[Event "Titled Tuesday Blitz March 07 Early 2023"]
[White "De Silva, L M S T"]
[Black "Yilmaz, Mustafa"]
[WhiteFideId "9953698"]
[BlackFideId "6302718"]
[WhiteElo "2403"]
[BlackElo "2523"]
[Result "0-1"]
[Round "10"]
[TimeControl "180+2"]
[Date "2023.03.07"]
[WhiteClock "0:00:13"]
[BlackClock "0:00:06"]

1. e4 {[%clk 0:03:00]}  b6 {[%clk 0:03:00]} 2. d4 {[%clk 0:03:00]}  Bb7 {[%clk 0:03:01]} 3. Nc3 {[%clk 0:03:01]}  g6 {[%clk 0:03:01]} 4. g3 {[%clk 0:03:00]}  Bg7 {[%clk 0:03:01]} 5. Bg2 {[%clk 0:03:00]}  e6 {[%clk 0:02:57]} 6. Nge2 {[%clk 0:03:00]}  d6 {[%clk 0:02:58]} 7. O-O {[%clk 0:03:01]}  Nd7 {[%clk 0:02:58]} 8. f4 {[%clk 0:02:59]}  Ne7 {[%clk 0:02:57]} 9. e5 {[%clk 0:02:59]}  Bxg2 {[%clk 0:02:57]} 10. Kxg2 {[%clk 0:02:59]}  Qc8 {[%clk 0:02:48]} 11. Qd3 {[%clk 0:02:47]}  Qb7+ {[%clk 0:02:47]} 12. Qe4 {[%clk 0:02:47]}  d5 {[%clk 0:02:42]} 13. Qf3 {[%clk 0:02:47]}  h5 {[%clk 0:02:43]} 14. Nd1 {[%clk 0:02:45]}  c5 {[%clk 0:02:14]} 15. c3 {[%clk 0:02:41]}  c4 {[%clk 0:02:12]} 16. Ne3 {[%clk 0:02:41]}  O-O-O {[%clk 0:02:09]} 17. h3 {[%clk 0:02:41]}  Nf5 {[%clk 0:02:08]} 18. Bd2 {[%clk 0:02:38]}  Kb8 {[%clk 0:02:08]} 19. Nxf5 {[%clk 0:02:37]}  gxf5 {[%clk 0:02:08]} 20. Kf2 {[%clk 0:02:32]}  b5 {[%clk 0:02:08]} 21. Rg1 {[%clk 0:02:16]}  Bf8 {[%clk 0:02:06]} 22. a3 {[%clk 0:02:12]}  Be7 {[%clk 0:02:06]} 23. g4 {[%clk 0:02:12]}  hxg4 {[%clk 0:02:05]} 24. hxg4 {[%clk 0:02:13]}  Rh2+ {[%clk 0:01:52]} 25. Rg2 {[%clk 0:02:13]}  fxg4 {[%clk 0:01:53]} 26. Qxg4 {[%clk 0:02:12]}  Rdh8 {[%clk 0:01:53]} 27. Rg1 {[%clk 0:02:09]}  R2h4 {[%clk 0:01:48]} 28. Qf3 {[%clk 0:01:59]}  Qc8 {[%clk 0:01:47]} 29. f5 {[%clk 0:01:58]}  Rh3 {[%clk 0:01:46]} 30. Ng3 {[%clk 0:01:55]}  Bh4 {[%clk 0:01:42]} 31. Ke2 {[%clk 0:01:53]}  Nb6 {[%clk 0:01:27]} 32. Qg4 {[%clk 0:01:20]}  Bxg3 {[%clk 0:01:24]} 33. Rxg3 {[%clk 0:01:21]}  Rh2+ {[%clk 0:01:23]} 34. R1g2 {[%clk 0:01:19]}  exf5 {[%clk 0:01:14]} 35. Qg7 {[%clk 0:01:17]}  Qe6 {[%clk 0:00:56]} 36. Rxh2 {[%clk 0:01:16]}  Rxh2+ {[%clk 0:00:56]} 37. Kd1 {[%clk 0:01:17]}  f4 {[%clk 0:00:44]} 38. Qf8+ {[%clk 0:01:00]}  Kb7 {[%clk 0:00:28]} 39. Rg7 {[%clk 0:00:58]}  Rh1+ {[%clk 0:00:24]} 40. Be1 {[%clk 0:00:51]}  Ka6 {[%clk 0:00:02]} 41. Qxf7 {[%clk 0:00:51]}  Qxf7 {[%clk 0:00:02]} 42. Rxf7 {[%clk 0:00:52]}  Na4 {[%clk 0:00:03]} 43. e6 {[%clk 0:00:18]}  Nxb2+ {[%clk 0:00:04]} 44. Ke2 {[%clk 0:00:17]}  Nd3 {[%clk 0:00:05]} 45. Bd2 {[%clk 0:00:16]}  Rh2+ {[%clk 0:00:06]} 46. Kd1 {[%clk 0:00:16]}  Rh1+ {[%clk 0:00:06]} 47. Ke2 {[%clk 0:00:17]}  Rh6 {[%clk 0:00:06]} 48. e7 {[%clk 0:00:15]}  Re6+ {[%clk 0:00:07]} 49. Kf3 {[%clk 0:00:15]}  Ka5 {[%clk 0:00:08]} 50. Bxf4 {[%clk 0:00:15]}  Re1 {[%clk 0:00:07]} 51. Bd6 {[%clk 0:00:15]}  Rf1+ {[%clk 0:00:05]} 52. Kg4 {[%clk 0:00:14]}  Rxf7 {[%clk 0:00:05]} 53. e8=Q {[%clk 0:00:14]}  Rf1 {[%clk 0:00:05]} 54. Qd7 {[%clk 0:00:11]}  Ka4 {[%clk 0:00:04]} 55. Qxa7+ {[%clk 0:00:11]}  Kb3 {[%clk 0:00:05]} 56. Qb7 {[%clk 0:00:12]}  Kxc3 {[%clk 0:00:05]} 57. Qxd5 {[%clk 0:00:12]}  Rg1+ {[%clk 0:00:05]} 58. Kf5 {[%clk 0:00:12]}  Rf1+ {[%clk 0:00:05]} 59. Ke6 {[%clk 0:00:12]}  Rb1 {[%clk 0:00:05]} 60. Bb4+ {[%clk 0:00:11]}  Rxb4 {[%clk 0:00:05]} 61. axb4 {[%clk 0:00:12]}  Nf4+ {[%clk 0:00:05]} 62. Kd6 {[%clk 0:00:13]}  Nxd5 {[%clk 0:00:06]} 63. Kxd5 {[%clk 0:00:13]}  Kxb4 {[%clk 0:00:07]} 64. Ke4 {[%clk 0:00:11]}  c3 {[%clk 0:00:07]} 65. d5 {[%clk 0:00:12]}  Kc5 {[%clk 0:00:06]} 66. d6 {[%clk 0:00:13]} 0-1


[Site "https://www.chess.com"]

[Event "Titled Tuesday Blitz March 07 Early 2023"]
[White "Narayanan, Srinath"]
[Black "Bolourchifard, Farzad"]
[WhiteFideId "5018420"]
[BlackFideId "12510084"]
[WhiteElo "2438"]
[BlackElo "2317"]
[Result "0-1"]
[Round "10"]
[TimeControl "180+2"]
[Date "2023.03.07"]
[WhiteClock "0:02:06"]
[BlackClock "0:01:13"]

1. Nf3 {[%clk 0:03:00]}  d5 {[%clk 0:03:00]} 2. e3 {[%clk 0:03:00]}  Nf6 {[%clk 0:03:00]} 3. c4 {[%clk 0:03:00]}  c6 {[%clk 0:02:57]} 4. b3 {[%clk 0:03:00]}  Bf5 {[%clk 0:02:57]} 5. Bb2 {[%clk 0:02:59]}  e6 {[%clk 0:02:58]} 6. Nc3 {[%clk 0:03:00]}  h6 {[%clk 0:02:58]} 7. Be2 {[%clk 0:03:00]}  Be7 {[%clk 0:02:58]} 8. O-O {[%clk 0:03:01]}  O-O {[%clk 0:02:59]} 9. d3 {[%clk 0:03:00]}  a5 {[%clk 0:02:52]} 10. a3 {[%clk 0:03:01]}  Nbd7 {[%clk 0:02:51]} 11. Rc1 {[%clk 0:02:57]}  Nc5 {[%clk 0:02:49]} 12. b4 {[%clk 0:02:53]}  axb4 {[%clk 0:02:48]} 13. axb4 {[%clk 0:02:54]}  Ncd7 {[%clk 0:02:49]} 14. b5 {[%clk 0:02:54]}  Bh7 {[%clk 0:02:40]} 15. bxc6 {[%clk 0:02:52]}  bxc6 {[%clk 0:02:40]} 16. Nd4 {[%clk 0:02:53]}  Qb6 {[%clk 0:02:25]} 17. Ba1 {[%clk 0:02:48]}  dxc4 {[%clk 0:02:19]} 18. dxc4 {[%clk 0:02:48]}  Rfd8 {[%clk 0:02:12]} 19. Bd3 {[%clk 0:02:45]}  Bxd3 {[%clk 0:02:08]} 20. Qxd3 {[%clk 0:02:44]}  Ne5 {[%clk 0:02:03]} 21. Qe2 {[%clk 0:02:44]}  Qa6 {[%clk 0:01:53]} 22. Nd1 {[%clk 0:02:38]}  Nxc4 {[%clk 0:01:37]} 23. Rxc4 {[%clk 0:02:29]}  Qxa1 {[%clk 0:01:37]} 24. Nxc6 {[%clk 0:02:30]}  Re8 {[%clk 0:01:37]} 25. h3 {[%clk 0:02:29]}  Bf8 {[%clk 0:01:31]} 26. Nc3 {[%clk 0:02:26]}  Qa6 {[%clk 0:01:31]} 27. Rc1 {[%clk 0:02:20]}  Rac8 {[%clk 0:01:28]} 28. Nd1 {[%clk 0:02:18]}  Rxc6 {[%clk 0:01:28]} 29. Nb2 {[%clk 0:02:14]}  Rec8 {[%clk 0:01:23]} 30. Qc2 {[%clk 0:02:06]}  Rxc4 {[%clk 0:01:21]} 31. Nxc4 {[%clk 0:02:07]}  Nd5 {[%clk 0:01:17]} 32. Qb3 {[%clk 0:02:06]}  Nb6 {[%clk 0:01:13]} 0-1


[Site "https://www.chess.com"]

[Event "Titled Tuesday Blitz March 07 Early 2023"]
[White "Csonka, Balazs"]
[Black "Bharath Subramaniyam H"]
[WhiteFideId "742910"]
[BlackFideId "46634827"]
[WhiteElo "2404"]
[BlackElo "2395"]
[Result "0-1"]
[Round "10"]
[TimeControl "180+2"]
[Date "2023.03.07"]
[WhiteClock "0:00:05"]
[BlackClock "0:00:39"]

1. d4 {[%clk 0:02:59]}  Nf6 {[%clk 0:02:58]} 2. c4 {[%clk 0:02:58]}  e6 {[%clk 0:02:59]} 3. Nf3 {[%clk 0:02:57]}  c5 {[%clk 0:03:00]} 4. d5 {[%clk 0:02:54]}  d6 {[%clk 0:02:59]} 5. Nc3 {[%clk 0:02:54]}  exd5 {[%clk 0:03:00]} 6. cxd5 {[%clk 0:02:54]}  g6 {[%clk 0:03:00]} 7. Bf4 {[%clk 0:02:53]}  a6 {[%clk 0:03:00]} 8. a4 {[%clk 0:02:53]}  Bg7 {[%clk 0:03:00]} 9. h3 {[%clk 0:02:51]}  O-O {[%clk 0:03:00]} 10. e3 {[%clk 0:02:52]}  Qe7 {[%clk 0:03:00]} 11. Be2 {[%clk 0:02:51]}  Nbd7 {[%clk 0:03:01]} 12. O-O {[%clk 0:02:52]}  Ne8 {[%clk 0:03:01]} 13. a5 {[%clk 0:02:49]}  Rb8 {[%clk 0:03:00]} 14. Ra3 {[%clk 0:02:43]}  b5 {[%clk 0:02:55]} 15. axb6 {[%clk 0:02:44]}  Rxb6 {[%clk 0:02:56]} 16. Rb3 {[%clk 0:02:44]}  Rb4 {[%clk 0:02:49]} 17. Rxb4 {[%clk 0:02:44]}  cxb4 {[%clk 0:02:50]} 18. Na4 {[%clk 0:02:44]}  Bb7 {[%clk 0:02:48]} 19. Nd4 {[%clk 0:02:44]}  Nc5 {[%clk 0:02:23]} 20. Nc6 {[%clk 0:02:05]}  Qd7 {[%clk 0:02:21]} 21. Bg4 {[%clk 0:01:21]}  f5 {[%clk 0:02:13]} 22. Bf3 {[%clk 0:01:19]}  Nf6 {[%clk 0:01:56]} 23. Nb6 {[%clk 0:01:12]}  Qc7 {[%clk 0:01:53]} 24. Nc4 {[%clk 0:01:12]}  Nfe4 {[%clk 0:01:49]} 25. Nxb4 {[%clk 0:01:03]}  a5 {[%clk 0:01:40]} 26. Nc6 {[%clk 0:01:02]}  Ba6 {[%clk 0:01:28]} 27. N6xa5 {[%clk 0:00:52]}  Bxb2 {[%clk 0:01:28]} 28. Qc2 {[%clk 0:00:40]}  Bc3 {[%clk 0:01:26]} 29. Bxd6 {[%clk 0:00:13]}  Nxd6 {[%clk 0:01:23]} 30. Qxc3 {[%clk 0:00:13]}  Nxc4 {[%clk 0:01:18]} 31. Nxc4 {[%clk 0:00:14]}  Na4 {[%clk 0:01:18]} 32. Qe5 {[%clk 0:00:09]}  Qxc4 {[%clk 0:01:11]} 33. Qe6+ {[%clk 0:00:09]}  Kg7 {[%clk 0:01:08]} 34. Qe5+ {[%clk 0:00:09]}  Kh6 {[%clk 0:01:08]} 35. Ra1 {[%clk 0:00:08]}  Bb5 {[%clk 0:00:53]} 36. d6 {[%clk 0:00:08]}  Qc3 {[%clk 0:00:51]} 37. Qxc3 {[%clk 0:00:04]}  Nxc3 {[%clk 0:00:52]} 38. Ra5 {[%clk 0:00:04]}  Rd8 {[%clk 0:00:51]} 39. g4 {[%clk 0:00:03]}  fxg4 {[%clk 0:00:50]} 40. hxg4 {[%clk 0:00:03]}  Rxd6 {[%clk 0:00:50]} 41. Kg2 {[%clk 0:00:04]}  Bc6 {[%clk 0:00:48]} 42. Bxc6 {[%clk 0:00:03]}  Rxc6 {[%clk 0:00:49]} 43. f3 {[%clk 0:00:04]}  Re6 {[%clk 0:00:44]} 44. e4 {[%clk 0:00:03]}  Ne2 {[%clk 0:00:44]} 45. Kf2 {[%clk 0:00:03]}  Nf4 {[%clk 0:00:44]} 46. Kg3 {[%clk 0:00:04]}  g5 {[%clk 0:00:45]} 47. Rf5 {[%clk 0:00:03]}  Kg6 {[%clk 0:00:45]} 48. Ra5 {[%clk 0:00:03]}  Rf6 {[%clk 0:00:45]} 49. Ra2 {[%clk 0:00:03]}  Ne6 {[%clk 0:00:45]} 50. Rd2 {[%clk 0:00:02]}  Nf4 {[%clk 0:00:43]} 51. Rc2 {[%clk 0:00:02]}  Rb6 {[%clk 0:00:43]} 52. Rd2 {[%clk 0:00:02]}  Rb1 {[%clk 0:00:39]} 53. Rd6+ {[%clk 0:00:02]}  Kf7 {[%clk 0:00:38]} 54. Rd7+ {[%clk 0:00:03]}  Kf6 {[%clk 0:00:38]} 55. Rxh7 {[%clk 0:00:03]}  Rb2 {[%clk 0:00:38]} 56. Rh2 {[%clk 0:00:03]}  Rxh2 {[%clk 0:00:38]} 57. Kxh2 {[%clk 0:00:04]}  Ke5 {[%clk 0:00:38]} 58. Kg3 {[%clk 0:00:05]}  Kd4 {[%clk 0:00:39]} 59. Kf2 {[%clk 0:00:06]}  Kd3 {[%clk 0:00:38]} 60. Kg3 {[%clk 0:00:03]}  Ke2 {[%clk 0:00:38]} 61. e5 {[%clk 0:00:04]}  Ke3 {[%clk 0:00:38]} 62. e6 {[%clk 0:00:04]}  Nxe6 {[%clk 0:00:38]} 63. Kg2 {[%clk 0:00:05]}  Nf4+ {[%clk 0:00:38]} 64. Kg3 {[%clk 0:00:05]}  Ke2 {[%clk 0:00:39]} 0-1


[Site "https://www.chess.com"]

[Event "Titled Tuesday Blitz March 07 Early 2023"]
[White "Yeletsky, Ivan"]
[Black "Martynov, Pavel"]
[WhiteFideId "24180327"]
[BlackFideId "4101260"]
[WhiteElo "2414"]
[BlackElo "2314"]
[Result "0-1"]
[Round "10"]
[TimeControl "180+2"]
[Date "2023.03.07"]
[WhiteClock "0:00:01"]
[BlackClock "0:00:42"]

1. g3 {[%clk 0:03:00]}  d5 {[%clk 0:02:58]} 2. Nf3 {[%clk 0:03:00]}  e6 {[%clk 0:02:58]} 3. c4 {[%clk 0:03:00]}  c5 {[%clk 0:02:55]} 4. cxd5 {[%clk 0:03:00]}  exd5 {[%clk 0:02:55]} 5. d4 {[%clk 0:03:01]}  Nc6 {[%clk 0:02:45]} 6. Bg2 {[%clk 0:03:01]}  Nf6 {[%clk 0:02:32]} 7. O-O {[%clk 0:03:01]}  Be7 {[%clk 0:02:32]} 8. b3 {[%clk 0:02:56]}  O-O {[%clk 0:02:31]} 9. Bb2 {[%clk 0:02:56]}  Re8 {[%clk 0:02:29]} 10. Nc3 {[%clk 0:02:54]}  a6 {[%clk 0:02:29]} 11. Rc1 {[%clk 0:02:12]}  Bg4 {[%clk 0:02:26]} 12. dxc5 {[%clk 0:01:41]}  Bxc5 {[%clk 0:02:24]} 13. h3 {[%clk 0:01:37]}  Be6 {[%clk 0:02:19]} 14. Ng5 {[%clk 0:01:24]}  Ba7 {[%clk 0:02:06]} 15. Nxe6 {[%clk 0:01:24]}  fxe6 {[%clk 0:02:07]} 16. e3 {[%clk 0:01:17]}  Kh8 {[%clk 0:01:57]} 17. Na4 {[%clk 0:01:12]}  Qe7 {[%clk 0:01:52]} 18. Qe2 {[%clk 0:01:10]}  Rad8 {[%clk 0:01:50]} 19. Rfd1 {[%clk 0:01:10]}  e5 {[%clk 0:01:46]} 20. Kh2 {[%clk 0:01:07]}  e4 {[%clk 0:01:42]} 21. Rd2 {[%clk 0:00:43]}  h5 {[%clk 0:01:40]} 22. Rcd1 {[%clk 0:00:40]}  h4 {[%clk 0:01:36]} 23. Nc3 {[%clk 0:00:32]}  Qe6 {[%clk 0:01:26]} 24. Na4 {[%clk 0:00:23]}  hxg3+ {[%clk 0:01:19]} 25. fxg3 {[%clk 0:00:24]}  Ne5 {[%clk 0:01:16]} 26. Rf1 {[%clk 0:00:23]}  Nfg4+ {[%clk 0:00:55]} 27. hxg4 {[%clk 0:00:22]}  Nxg4+ {[%clk 0:00:54]} 28. Qxg4 {[%clk 0:00:11]}  Qxg4 {[%clk 0:00:54]} 29. Rf4 {[%clk 0:00:12]}  Qg5 {[%clk 0:00:49]} 30. Bd4 {[%clk 0:00:04]}  Bxd4 {[%clk 0:00:47]} 31. Rxd4 {[%clk 0:00:04]}  Rd6 {[%clk 0:00:48]} 32. Rh4+ {[%clk 0:00:02]}  Rh6 {[%clk 0:00:46]} 33. Bh3 {[%clk 0:00:02]}  Rxh4 {[%clk 0:00:45]} 34. gxh4 {[%clk 0:00:03]}  Qxe3 {[%clk 0:00:45]} 35. Rxd5 {[%clk 0:00:03]}  Qf2+ {[%clk 0:00:44]} 36. Bg2 {[%clk 0:00:04]}  Qxh4+ {[%clk 0:00:43]} 37. Kg1 {[%clk 0:00:04]}  e3 {[%clk 0:00:42]} 38. Nc5 {[%clk 0:00:01]}  e2 {[%clk 0:00:42]} 0-1


[Site "https://www.chess.com"]

[Event "Titled Tuesday Blitz March 07 Early 2023"]
[White "Tan, Jun Ying"]
[Black "Yuan, Qingyu"]
[WhiteFideId "5710413"]
[BlackFideId "8609772"]
[WhiteElo "2089"]
[BlackElo "2359"]
[Result "0-1"]
[Round "10"]
[TimeControl "180+2"]
[Date "2023.03.07"]
[WhiteClock "0:00:01"]
[BlackClock "0:00:08"]

1. d4 {[%clk 0:03:00]}  d5 {[%clk 0:03:00]} 2. c4 {[%clk 0:03:01]}  e6 {[%clk 0:03:01]} 3. Nc3 {[%clk 0:03:00]}  Be7 {[%clk 0:03:01]} 4. cxd5 {[%clk 0:02:59]}  exd5 {[%clk 0:03:02]} 5. Bf4 {[%clk 0:02:58]}  c6 {[%clk 0:03:02]} 6. e3 {[%clk 0:02:58]}  Bf5 {[%clk 0:03:02]} 7. g4 {[%clk 0:02:56]}  Be6 {[%clk 0:03:03]} 8. h4 {[%clk 0:02:55]}  Bxh4 {[%clk 0:03:04]} 9. Qb3 {[%clk 0:02:49]}  g5 {[%clk 0:03:04]} 10. Bh2 {[%clk 0:02:39]}  Qb6 {[%clk 0:02:24]} 11. Qa3 {[%clk 0:02:37]}  Nf6 {[%clk 0:02:16]} 12. Na4 {[%clk 0:01:25]}  Qd8 {[%clk 0:01:54]} 13. Nc5 {[%clk 0:01:23]}  Nxg4 {[%clk 0:01:43]} 14. Nxb7 {[%clk 0:01:18]}  Qb6 {[%clk 0:01:33]} 15. Nd6+ {[%clk 0:01:13]}  Kd7 {[%clk 0:01:33]} 16. Nxf7 {[%clk 0:00:51]}  Bxf7 {[%clk 0:01:16]} 17. Bh3 {[%clk 0:00:43]}  h5 {[%clk 0:00:57]} 18. Qd6+ {[%clk 0:00:38]}  Kc8 {[%clk 0:00:50]} 19. O-O-O {[%clk 0:00:29]}  Rd8 {[%clk 0:00:43]} 20. Qf6 {[%clk 0:00:24]}  Be8 {[%clk 0:00:18]} 21. f3 {[%clk 0:00:12]}  Bd7 {[%clk 0:00:18]} 22. fxg4 {[%clk 0:00:10]}  hxg4 {[%clk 0:00:19]} 23. Bf1 {[%clk 0:00:08]}  Na6 {[%clk 0:00:18]} 24. Ne2 {[%clk 0:00:06]}  Nc7 {[%clk 0:00:16]} 25. Nc3 {[%clk 0:00:02]}  g3 {[%clk 0:00:16]} 26. Bg1 {[%clk 0:00:02]}  Rb8 {[%clk 0:00:16]} 27. b3 {[%clk 0:00:02]}  Bg4 {[%clk 0:00:12]} 28. Be2 {[%clk 0:00:01]}  Bxe2 {[%clk 0:00:12]} 29. Nxe2 {[%clk 0:00:02]}  Kb7 {[%clk 0:00:09]} 30. Qf5 {[%clk 0:00:03]}  Qa5 {[%clk 0:00:08]} 31. Qc2 {[%clk 0:00:03]}  Nb5 {[%clk 0:00:08]} 32. Qb2 {[%clk 0:00:02]}  Re8 {[%clk 0:00:07]} 33. e4 {[%clk 0:00:02]}  Rxe4 {[%clk 0:00:07]} 34. Rd3 {[%clk 0:00:02]}  Qe1+ {[%clk 0:00:07]} 35. Rd1 {[%clk 0:00:01]}  Qxe2 {[%clk 0:00:07]} 36. Qxe2 {[%clk 0:00:01]}  Rxe2 {[%clk 0:00:08]} 0-1


[Site "https://www.chess.com"]

[Event "Titled Tuesday Blitz March 07 Early 2023"]
[White "Shapiro, Viktor"]
[Black "Atakhan, Abtin"]
[WhiteFideId "4175700"]
[BlackFideId "22502203"]
[WhiteElo "2152"]
[BlackElo "2008"]
[Result "0-1"]
[Round "10"]
[TimeControl "180+2"]
[Date "2023.03.07"]
[WhiteClock "0:00:42"]
[BlackClock "0:00:24"]

1. c4 {[%clk 0:03:00]}  Nf6 {[%clk 0:02:59]} 2. Nc3 {[%clk 0:03:01]}  e5 {[%clk 0:02:58]} 3. Nf3 {[%clk 0:03:00]}  Nc6 {[%clk 0:02:58]} 4. g3 {[%clk 0:03:00]}  Nd4 {[%clk 0:02:58]} 5. Bg2 {[%clk 0:02:49]}  Nxf3+ {[%clk 0:02:58]} 6. Bxf3 {[%clk 0:02:49]}  Bb4 {[%clk 0:02:50]} 7. O-O {[%clk 0:02:48]}  O-O {[%clk 0:02:48]} 8. Qb3 {[%clk 0:02:46]}  Bc5 {[%clk 0:02:44]} 9. d3 {[%clk 0:02:45]}  c6 {[%clk 0:02:42]} 10. Bg2 {[%clk 0:02:35]}  Re8 {[%clk 0:02:33]} 11. Bg5 {[%clk 0:02:35]}  Be7 {[%clk 0:02:29]} 12. h3 {[%clk 0:02:17]}  d6 {[%clk 0:02:16]} 13. e3 {[%clk 0:02:13]}  h6 {[%clk 0:02:11]} 14. Bxf6 {[%clk 0:02:14]}  Bxf6 {[%clk 0:02:12]} 15. Rad1 {[%clk 0:02:10]}  Qe7 {[%clk 0:01:51]} 16. d4 {[%clk 0:02:00]}  Bf5 {[%clk 0:01:43]} 17. g4 {[%clk 0:01:57]}  Bg6 {[%clk 0:01:37]} 18. d5 {[%clk 0:01:52]}  c5 {[%clk 0:01:32]} 19. Be4 {[%clk 0:01:51]}  Bh4 {[%clk 0:01:27]} 20. Qc2 {[%clk 0:01:42]}  Rf8 {[%clk 0:01:19]} 21. Bxg6 {[%clk 0:01:35]}  fxg6 {[%clk 0:01:20]} 22. Qxg6 {[%clk 0:01:36]}  Rf6 {[%clk 0:01:14]} 23. Qc2 {[%clk 0:01:29]}  Raf8 {[%clk 0:01:01]} 24. Kg2 {[%clk 0:01:23]}  Rxf2+ {[%clk 0:00:39]} 25. Rxf2 {[%clk 0:01:23]}  Rxf2+ {[%clk 0:00:40]} 26. Qxf2 {[%clk 0:01:24]}  Bxf2 {[%clk 0:00:41]} 27. Kxf2 {[%clk 0:01:24]}  e4 {[%clk 0:00:41]} 28. Ke2 {[%clk 0:01:17]}  Qe5 {[%clk 0:00:34]} 29. Rf1 {[%clk 0:01:08]}  a6 {[%clk 0:00:29]} 30. Rf4 {[%clk 0:01:07]}  b5 {[%clk 0:00:24]} 31. cxb5 {[%clk 0:01:05]}  axb5 {[%clk 0:00:25]} 32. Rxe4 {[%clk 0:00:51]}  Qh2+ {[%clk 0:00:25]} 33. Kd1 {[%clk 0:00:43]}  Qxb2 {[%clk 0:00:25]} 34. Re8+ {[%clk 0:00:42]}  Kf7 {[%clk 0:00:24]} 0-1


[Site "https://www.chess.com"]

[Event "Titled Tuesday Blitz March 07 Early 2023"]
[White "Orozbaev, Eldiar"]
[Black "Petukhov, Dmitry"]
[WhiteFideId "13802240"]
[BlackFideId "4142748"]
[WhiteElo "2201"]
[BlackElo "2311"]
[Result "1/2-1/2"]
[Round "10"]
[TimeControl "180+2"]
[Date "2023.03.07"]
[WhiteClock "0:00:08"]
[BlackClock "0:00:09"]

1. e4 {[%clk 0:02:59]}  c5 {[%clk 0:02:59]} 2. c3 {[%clk 0:03:00]}  d5 {[%clk 0:02:59]} 3. exd5 {[%clk 0:03:00]}  Qxd5 {[%clk 0:03:00]} 4. d4 {[%clk 0:03:01]}  Nf6 {[%clk 0:02:56]} 5. Nf3 {[%clk 0:03:01]}  Bg4 {[%clk 0:02:55]} 6. dxc5 {[%clk 0:03:00]}  Qxd1+ {[%clk 0:02:53]} 7. Kxd1 {[%clk 0:03:01]}  e5 {[%clk 0:02:51]} 8. h3 {[%clk 0:02:59]}  Bxf3+ {[%clk 0:02:44]} 9. gxf3 {[%clk 0:03:00]}  Bxc5 {[%clk 0:02:41]} 10. Be3 {[%clk 0:03:01]}  Nbd7 {[%clk 0:02:21]} 11. Kc2 {[%clk 0:02:59]}  O-O-O {[%clk 0:02:20]} 12. Nd2 {[%clk 0:02:58]}  Rhe8 {[%clk 0:02:13]} 13. Bc4 {[%clk 0:02:54]}  Re7 {[%clk 0:02:08]} 14. Rad1 {[%clk 0:02:51]}  a6 {[%clk 0:01:51]} 15. a4 {[%clk 0:02:47]}  e4 {[%clk 0:01:37]} 16. fxe4 {[%clk 0:02:42]}  Bxe3 {[%clk 0:01:33]} 17. fxe3 {[%clk 0:02:36]}  Nxe4 {[%clk 0:01:34]} 18. Nxe4 {[%clk 0:02:37]}  Rxe4 {[%clk 0:01:33]} 19. Bxf7 {[%clk 0:02:36]}  Rxe3 {[%clk 0:01:32]} 20. Rhe1 {[%clk 0:02:20]}  Rxe1 {[%clk 0:01:28]} 21. Rxe1 {[%clk 0:02:21]}  Rf8 {[%clk 0:01:26]} 22. Be6 {[%clk 0:02:19]}  Kc7 {[%clk 0:01:21]} 23. Bg4 {[%clk 0:02:20]}  Rf7 {[%clk 0:01:12]} 24. b4 {[%clk 0:02:15]}  Nf6 {[%clk 0:01:09]} 25. Bf5 {[%clk 0:02:13]}  g6 {[%clk 0:01:03]} 26. Bd3 {[%clk 0:02:10]}  Nd5 {[%clk 0:00:59]} 27. Bc4 {[%clk 0:02:09]}  Rf5 {[%clk 0:00:58]} 28. Bxd5 {[%clk 0:02:03]}  Rxd5 {[%clk 0:00:57]} 29. Re7+ {[%clk 0:02:04]}  Rd7 {[%clk 0:00:50]} 30. Re8 {[%clk 0:01:17]}  Rd5 {[%clk 0:00:49]} 31. c4 {[%clk 0:01:15]}  Rh5 {[%clk 0:00:43]} 32. Re3 {[%clk 0:01:13]}  b5 {[%clk 0:00:35]} 33. axb5 {[%clk 0:01:12]}  axb5 {[%clk 0:00:36]} 34. c5 {[%clk 0:01:12]}  Rh4 {[%clk 0:00:31]} 35. Kc3 {[%clk 0:01:12]}  Kc6 {[%clk 0:00:31]} 36. Re6+ {[%clk 0:01:11]}  Kc7 {[%clk 0:00:29]} 37. Re3 {[%clk 0:01:11]}  Kc6 {[%clk 0:00:29]} 38. Rd3 {[%clk 0:01:12]}  Kc7 {[%clk 0:00:27]} 39. Rf3 {[%clk 0:01:06]}  Kc6 {[%clk 0:00:27]} 40. Rf6+ {[%clk 0:01:03]}  Kc7 {[%clk 0:00:27]} 41. Rb6 {[%clk 0:00:59]}  Rxh3+ {[%clk 0:00:21]} 42. Kd4 {[%clk 0:01:00]}  g5 {[%clk 0:00:20]} 43. Rxb5 {[%clk 0:00:59]}  g4 {[%clk 0:00:20]} 44. Ra5 {[%clk 0:01:00]}  g3 {[%clk 0:00:20]} 45. Ra7+ {[%clk 0:01:00]}  Kc6 {[%clk 0:00:19]} 46. Rg7 {[%clk 0:01:01]}  h5 {[%clk 0:00:19]} 47. Rg6+ {[%clk 0:00:59]}  Kb5 {[%clk 0:00:18]} 48. c6 {[%clk 0:00:49]}  Kb6 {[%clk 0:00:17]} 49. Kd5 {[%clk 0:00:49]}  h4 {[%clk 0:00:13]} 50. Rg7 {[%clk 0:00:45]}  Rh2 {[%clk 0:00:12]} 51. Rb7+ {[%clk 0:00:45]}  Ka6 {[%clk 0:00:12]} 52. b5+ {[%clk 0:00:45]}  Ka5 {[%clk 0:00:13]} 53. c7 {[%clk 0:00:38]}  Rc2 {[%clk 0:00:13]} 54. Rb8 {[%clk 0:00:14]}  Rxc7 {[%clk 0:00:12]} 55. Rg8 {[%clk 0:00:12]}  Kxb5 {[%clk 0:00:10]} 56. Ke4 {[%clk 0:00:10]}  Rc2 {[%clk 0:00:10]} 57. Kf3 {[%clk 0:00:09]}  Rf2+ {[%clk 0:00:09]} 58. Kg4 {[%clk 0:00:08]}  Rh2 {[%clk 0:00:08]} 59. Kf3 {[%clk 0:00:07]}  Kc4 {[%clk 0:00:08]} 60. Rd8 {[%clk 0:00:03]}  Rf2+ {[%clk 0:00:07]} 61. Ke3 {[%clk 0:00:03]}  h3 {[%clk 0:00:07]} 62. Rg8 {[%clk 0:00:03]}  Rg2 {[%clk 0:00:04]} 63. Kf3 {[%clk 0:00:03]}  Rg1 {[%clk 0:00:02]} 64. Rc8+ {[%clk 0:00:02]}  Kd5 {[%clk 0:00:02]} 65. Rd8+ {[%clk 0:00:03]}  Ke6 {[%clk 0:00:03]} 66. Rh8 {[%clk 0:00:04]}  Kf7 {[%clk 0:00:04]} 67. Rxh3 {[%clk 0:00:04]}  Rf1+ {[%clk 0:00:04]} 68. Kg2 {[%clk 0:00:04]}  Rf6 {[%clk 0:00:05]} 69. Kxg3 {[%clk 0:00:04]}  Rg6+ {[%clk 0:00:06]} 70. Kf4 {[%clk 0:00:05]}  Rf6+ {[%clk 0:00:07]} 71. Ke5 {[%clk 0:00:05]}  Re6+ {[%clk 0:00:07]} 72. Kd5 {[%clk 0:00:06]}  Rf6 {[%clk 0:00:08]} 73. Rh7+ {[%clk 0:00:07]}  Kg6 {[%clk 0:00:08]} 74. Re7 {[%clk 0:00:07]}  Rf5+ {[%clk 0:00:09]} 75. Re5 {[%clk 0:00:07]}  Rxe5+ {[%clk 0:00:09]} 76. Kxe5 {[%clk 0:00:08]} 1/2-1/2


[Site "https://www.chess.com"]